[Event "Live Chess"]
[Site "Chess.com"]
[Date "2024.06.02"]
[Round "-"]
[White "juniortay"]
[Black "AlanBstard10"]
[Result "1-0"]
[WhiteElo "2406"]
[BlackElo "1167"]
[TimeControl "300"]
[EndTime "23:44:07 PDT"]
[Termination "juniortay won by checkmate"]

1. e4 {[%clk 0:04:56.9]} 1... d5 {[%clk 0:04:56.3]} 2. exd5 {[%clk 0:04:55.4]}
2... Nf6 {[%clk 0:04:54.6]} 3. c4 {[%clk 0:04:54.2]} 3... c6 {[%clk 0:04:51]} 4.
d4 {[%clk 0:04:50]} 4... cxd5 {[%clk 0:04:47.8]} 5. Nc3 {[%clk 0:04:48.5]} 5...
dxc4 {[%clk 0:04:46.1]} 6. Bxc4 {[%clk 0:04:47.3]} 6... Nc6 {[%clk 0:04:43]} 7.
Nf3 {[%clk 0:04:45.4]} 7... Bg4 {[%clk 0:04:39.4]} 8. d5 {[%clk 0:04:42.1]} 8...
Ne5 {[%clk 0:04:34.5]} 9. Bb5+ {[%clk 0:04:40.5]} 9... Nfd7 {[%clk 0:04:31.5]}
10. Bf4 {[%clk 0:04:35.2]} 10... Nxf3+ {[%clk 0:04:27]} 11. gxf3 {[%clk
0:04:33.7]} 11... Bf5 {[%clk 0:04:18.9]} 12. O-O {[%clk 0:04:29.9]} 12... g6
{[%clk 0:04:14]} 13. Qd4 {[%clk 0:04:26.6]} 13... Rg8 {[%clk 0:04:08.4]} 14.
Rfe1 {[%clk 0:04:25.1]} 14... Bg7 {[%clk 0:04:07.1]} 15. Qb4 {[%clk 0:04:23.4]}
15... Bf6 {[%clk 0:04:03]} 16. Ne4 {[%clk 0:04:16.9]} 16... a5 {[%clk
0:03:59.4]} 17. Nxf6+ {[%clk 0:04:10.3]} 17... Kf8 {[%clk 0:03:57.8]} 18. Bh6+
{[%clk 0:04:08]} 18... Rg7 {[%clk 0:03:56.1]} 19. Nxd7+ {[%clk 0:04:00.2]} 19...
Kg8 {[%clk 0:03:53.2]} 20. Qd4 {[%clk 0:03:53.8]} 20... f6 {[%clk 0:03:45.3]}
21. Bxg7 {[%clk 0:03:50.8]} 21... Kxg7 {[%clk 0:03:43.9]} 22. Nc5 {[%clk
0:03:50.7]} 22... Qd6 {[%clk 0:03:33.6]} 23. Ne6+ {[%clk 0:03:48.2]} 23... Kf7
{[%clk 0:03:30.3]} 24. Rac1 {[%clk 0:03:38.4]} 24... Bh3 {[%clk 0:03:25.9]} 25.
Qh4 {[%clk 0:03:32.8]} 25... Qxd5 {[%clk 0:03:15.8]} 26. Qxh7# {[%clk
0:03:29.3]} 1-0

[Event "Live Chess"]
[Site "Chess.com"]
[Date "2024.06.02"]
[Round "-"]
[White "Ferrarifan27"]
[Black "OleksiyJr1"]
[Result "1-0"]
[WhiteElo "2116"]
[BlackElo "1521"]
[TimeControl "300"]
[EndTime "23:44:28 PDT"]
[Termination "Ferrarifan27 won by resignation"]

1. e4 {[%clk 0:04:57.1]} 1... c5 {[%clk 0:04:59.5]} 2. Nf3 {[%clk 0:04:53.1]}
2... Nc6 {[%clk 0:04:59]} 3. b4 {[%clk 0:04:49.7]} 3... cxb4 {[%clk 0:04:53.5]}
4. d4 {[%clk 0:04:41.6]} 4... d5 {[%clk 0:04:52.2]} 5. exd5 {[%clk 0:04:35.8]}
5... Qxd5 {[%clk 0:04:50.6]} 6. c4 {[%clk 0:04:34.7]} 6... Qa5 {[%clk 0:04:42]}
7. d5 {[%clk 0:04:30.8]} 7... b3+ {[%clk 0:04:38.6]} 8. Bd2 {[%clk 0:04:29.7]}
8... Nb4 {[%clk 0:04:36.4]} 9. Qxb3 {[%clk 0:04:27.3]} 9... e6 {[%clk
0:04:24.9]} 10. a3 {[%clk 0:04:22.7]} 10... Bc5 {[%clk 0:03:45]} 11. Bxb4 {[%clk
0:04:19.6]} 11... Bxb4+ {[%clk 0:03:43.8]} 1-0

[Event "Live Chess"]
[Site "Chess.com"]
[Date "2024.06.02"]
[Round "-"]
[White "Delacorta"]
[Black "JoeyCage"]
[Result "0-1"]
[WhiteElo "1525"]
[BlackElo "2397"]
[TimeControl "300"]
[EndTime "23:44:36 PDT"]
[Termination "JoeyCage won by resignation"]

1. d4 {[%clk 0:04:57.6]} 1... e6 {[%clk 0:04:58.7]} 2. e4 {[%clk 0:04:53.4]}
2... c5 {[%clk 0:04:54.5]} 3. Nf3 {[%clk 0:04:41.6]} 3... cxd4 {[%clk
0:04:52.7]} 4. Nxd4 {[%clk 0:04:37.9]} 4... Nc6 {[%clk 0:04:49.9]} 5. Nxc6
{[%clk 0:04:33.1]} 5... bxc6 {[%clk 0:04:48.6]} 6. Be2 {[%clk 0:04:24.8]} 6...
d5 {[%clk 0:04:43.8]} 7. exd5 {[%clk 0:04:16.1]} 7... cxd5 {[%clk 0:04:42.5]} 8.
O-O {[%clk 0:04:09.8]} 8... Nf6 {[%clk 0:04:40.9]} 9. Bg5 {[%clk 0:04:04.6]}
9... Be7 {[%clk 0:04:39.3]} 10. Nd2 {[%clk 0:03:47.9]} 10... h6 {[%clk
0:04:36.8]} 11. Bh4 {[%clk 0:03:46.4]} 11... O-O {[%clk 0:04:33.6]} 12. Nf3
{[%clk 0:03:41.9]} 12... Rb8 {[%clk 0:04:29.2]} 13. b3 {[%clk 0:03:36.3]} 13...
Ne4 {[%clk 0:04:19.4]} 14. Bxe7 {[%clk 0:03:33.6]} 14... Qxe7 {[%clk 0:04:17.8]}
15. Qd4 {[%clk 0:03:16.7]} 15... Bb7 {[%clk 0:04:07.3]} 16. a4 {[%clk
0:02:46.2]} 16... a5 {[%clk 0:04:02.6]} 17. Bb5 {[%clk 0:02:40.4]} 17... Rfc8
{[%clk 0:03:57.2]} 18. c4 {[%clk 0:02:36.8]} 18... dxc4 {[%clk 0:03:50.2]} 19.
bxc4 {[%clk 0:02:24.9]} 19... Qc5 {[%clk 0:03:46.9]} 20. Qxc5 {[%clk 0:02:15.7]}
20... Nxc5 {[%clk 0:03:45.1]} 21. Rad1 {[%clk 0:02:06.9]} 21... Bxf3 {[%clk
0:03:42.1]} 22. gxf3 {[%clk 0:02:04.7]} 22... Rd8 {[%clk 0:03:41.4]} 23. Kg2
{[%clk 0:01:55.9]} 23... Kf8 {[%clk 0:03:40]} 24. Kg3 {[%clk 0:01:52.2]} 24...
Ke7 {[%clk 0:03:38.7]} 25. Kf4 {[%clk 0:01:43.1]} 25... Rxd1 {[%clk 0:03:29]}
26. Rxd1 {[%clk 0:01:40.8]} 26... Rd8 {[%clk 0:03:28.2]} 27. Ke3 {[%clk
0:01:36.6]} 27... Rxd1 {[%clk 0:03:25.1]} 0-1

[Event "Live Chess"]
[Site "Chess.com"]
[Date "2024.06.02"]
[Round "-"]
[White "Ziipyyy"]
[Black "peteopeteo"]
[Result "0-1"]
[WhiteElo "1303"]
[BlackElo "1546"]
[TimeControl "300"]
[EndTime "23:44:39 PDT"]
[Termination "peteopeteo won by checkmate"]

1. e4 {[%clk 0:04:59.5]} 1... c6 {[%clk 0:04:59.4]} 2. d4 {[%clk 0:04:58.1]}
2... d5 {[%clk 0:04:59.3]} 3. e5 {[%clk 0:04:57.6]} 3... Bf5 {[%clk 0:04:58.7]}
4. h4 {[%clk 0:04:57]} 4... h5 {[%clk 0:04:57.7]} 5. Bd3 {[%clk 0:04:52.6]} 5...
Bxd3 {[%clk 0:04:55.5]} 6. Qxd3 {[%clk 0:04:52.2]} 6... e6 {[%clk 0:04:54.8]} 7.
f4 {[%clk 0:04:50.5]} 7... Be7 {[%clk 0:04:50.5]} 8. Nf3 {[%clk 0:04:48.6]} 8...
c5 {[%clk 0:04:46.9]} 9. c3 {[%clk 0:04:46.6]} 9... Nc6 {[%clk 0:04:44.5]} 10.
Be3 {[%clk 0:04:45.1]} 10... c4 {[%clk 0:04:33.9]} 11. Qc2 {[%clk 0:04:40.8]}
11... Nh6 {[%clk 0:04:33.8]} 12. Nbd2 {[%clk 0:04:18]} 12... Ng4 {[%clk
0:04:29.7]} 13. Ng5 {[%clk 0:04:09.3]} 13... Nxe3 {[%clk 0:04:27.9]} 14. Qc1
{[%clk 0:04:02.4]} 14... Nxg2+ {[%clk 0:04:25]} 15. Kf2 {[%clk 0:04:01.1]} 15...
Nxf4 {[%clk 0:04:14.3]} 16. Qf1 {[%clk 0:03:53.8]} 16... Bxg5 {[%clk 0:04:12.2]}
17. hxg5 {[%clk 0:03:52.1]} 17... Qxg5 {[%clk 0:04:12.1]} 18. Rg1 {[%clk
0:03:51]} 18... Qf5 {[%clk 0:04:01.3]} 19. Nf3 {[%clk 0:03:47.2]} 19... Nh3+
{[%clk 0:03:55.6]} 20. Ke3 {[%clk 0:03:43.3]} 20... Qf4+ {[%clk 0:03:46.1]} 21.
Ke2 {[%clk 0:03:41.5]} 21... Nxg1+ {[%clk 0:03:33.3]} 22. Qxg1 {[%clk
0:03:39.7]} 22... Qe4+ {[%clk 0:03:24.3]} 23. Kf2 {[%clk 0:03:36.6]} 23... O-O
{[%clk 0:03:08.8]} 24. Qg3 {[%clk 0:03:32.3]} 24... Qg4 {[%clk 0:03:06.1]} 25.
Qh2 {[%clk 0:03:23.8]} 25... Ne7 {[%clk 0:02:38.4]} 26. Rg1 {[%clk 0:03:20.8]}
26... Qf5 {[%clk 0:02:30.3]} 27. Rg5 {[%clk 0:03:15.8]} 27... Qc2+ {[%clk
0:02:28.9]} 28. Kg3 {[%clk 0:03:11.8]} 28... Qxh2+ {[%clk 0:02:28.8]} 29. Nxh2
{[%clk 0:03:07.4]} 29... Nf5+ {[%clk 0:02:26.3]} 30. Kf4 {[%clk 0:03:04.6]}
30... g6 {[%clk 0:02:14.3]} 31. Nf3 {[%clk 0:02:59.5]} 31... b5 {[%clk
0:01:50.3]} 32. a3 {[%clk 0:02:55.9]} 32... a5 {[%clk 0:01:49.4]} 33. Rg1 {[%clk
0:02:52.5]} 33... Rfb8 {[%clk 0:01:44.8]} 34. Nd2 {[%clk 0:02:44]} 34... b4
{[%clk 0:01:40.8]} 35. axb4 {[%clk 0:02:41.8]} 35... axb4 {[%clk 0:01:40.7]} 36.
Kg5 {[%clk 0:02:30.4]} 36... bxc3 {[%clk 0:01:38.7]} 37. bxc3 {[%clk 0:02:30]}
37... Rb2 {[%clk 0:01:30.4]} 38. Nf3 {[%clk 0:02:27.3]} 38... Raa2 {[%clk
0:01:26.3]} 39. Kf6 {[%clk 0:02:23.1]} 39... Rg2 {[%clk 0:01:23.4]} 40. Rf1
{[%clk 0:02:11.7]} 40... Rgf2 {[%clk 0:01:21.3]} 41. Rxf2 {[%clk 0:02:05.9]}
41... Rxf2 {[%clk 0:01:20]} 42. Ng1 {[%clk 0:02:04]} 42... Rc2 {[%clk
0:01:15.7]} 43. Nh3 {[%clk 0:02:02]} 43... Rxc3 {[%clk 0:01:07.3]} 44. Ng5
{[%clk 0:02:00.8]} 44... Nh6 {[%clk 0:01:05.8]} 45. Ke7 {[%clk 0:01:56]} 45...
Rg3 {[%clk 0:00:59]} 46. Nxe6 {[%clk 0:01:53.3]} 46... fxe6 {[%clk 0:00:57.3]}
47. Kxe6 {[%clk 0:01:53.2]} 47... c3 {[%clk 0:00:56.4]} 48. Kxd5 {[%clk
0:01:51.8]} 48... c2 {[%clk 0:00:55.7]} 49. e6 {[%clk 0:01:51.6]} 49... c1=Q
{[%clk 0:00:54.4]} 50. e7 {[%clk 0:01:51.3]} 50... Qg5+ {[%clk 0:00:52.3]} 51.
Kd6 {[%clk 0:01:50.2]} 51... Qf6+ {[%clk 0:00:50.6]} 52. Kd7 {[%clk 0:01:49.3]}
52... Qf5+ {[%clk 0:00:47.5]} 53. Kd8 {[%clk 0:01:47.1]} 53... Qd5+ {[%clk
0:00:44.6]} 54. Ke8 {[%clk 0:01:46.6]} 54... Qf7+ {[%clk 0:00:27.4]} 55. Kd8
{[%clk 0:01:42.8]} 55... Qxe7+ {[%clk 0:00:22]} 56. Kxe7 {[%clk 0:01:41.5]}
56... Rd3 {[%clk 0:00:21.6]} 57. Ke6 {[%clk 0:01:39.2]} 57... Rxd4 {[%clk
0:00:20.7]} 58. Ke5 {[%clk 0:01:38.9]} 58... Rg4 {[%clk 0:00:19.1]} 59. Kf6
{[%clk 0:01:38.8]} 59... Kh7 {[%clk 0:00:17.8]} 60. Ke5 {[%clk 0:01:38.7]} 60...
Rg1 {[%clk 0:00:16.2]} 61. Kd5 {[%clk 0:01:38.6]} 61... Re1 {[%clk 0:00:15.1]}
62. Kd4 {[%clk 0:01:38.2]} 62... Kg7 {[%clk 0:00:14.3]} 63. Kd5 {[%clk
0:01:37.5]} 63... Kf6 {[%clk 0:00:13.5]} 64. Kd4 {[%clk 0:01:37.1]} 64... Re8
{[%clk 0:00:11.7]} 65. Kd5 {[%clk 0:01:36.6]} 65... Re7 {[%clk 0:00:10.3]} 66.
Kd4 {[%clk 0:01:36.2]} 66... Kf5 {[%clk 0:00:09.7]} 67. Kc5 {[%clk 0:01:34.8]}
67... Rd7 {[%clk 0:00:08.8]} 68. Kc6 {[%clk 0:01:34.5]} 68... Rd1 {[%clk
0:00:07.3]} 69. Kc5 {[%clk 0:01:33.5]} 69... Ke4 {[%clk 0:00:06.4]} 70. Kc6
{[%clk 0:01:32.3]} 70... Ke5 {[%clk 0:00:05.2]} 71. Kc7 {[%clk 0:01:31.7]} 71...
Ke6 {[%clk 0:00:04.6]} 72. Kc8 {[%clk 0:01:31.1]} 72... Ke7 {[%clk 0:00:03.8]}
73. Kc7 {[%clk 0:01:30.4]} 73... Rc1+ {[%clk 0:00:03.3]} 74. Kb6 {[%clk
0:01:30.3]} 74... Kd6 {[%clk 0:00:02.8]} 75. Kb5 {[%clk 0:01:30.2]} 75... g5
{[%clk 0:00:01.6]} 76. Kb4 {[%clk 0:01:30.1]} 76... g4 {[%clk 0:00:01.5]} 77.
Kb3 {[%clk 0:01:29.3]} 77... g3 {[%clk 0:00:01.4]} 78. Kb2 {[%clk 0:01:28.8]}
78... Rc8 {[%clk 0:00:00.8]} 79. Kb3 {[%clk 0:01:28.2]} 79... g2 {[%clk
0:00:00.7]} 80. Kb4 {[%clk 0:01:27.1]} 80... g1=Q {[%clk 0:00:00.6]} 81. Kb3
{[%clk 0:01:26.5]} 81... Qb6+ {[%clk 0:00:00.5]} 82. Ka2 {[%clk 0:01:25]} 82...
Ra8# {[%clk 0:00:00.4]} 0-1

[Event "Live Chess"]
[Site "Chess.com"]
[Date "2024.06.02"]
[Round "-"]
[White "MagnersCarlsberg2870"]
[Black "RockTroll"]
[Result "0-1"]
[WhiteElo "1823"]
[BlackElo "2185"]
[TimeControl "300"]
[EndTime "23:44:48 PDT"]
[Termination "RockTroll won by resignation"]

1. d4 {[%clk 0:04:57.4]} 1... Nf6 {[%clk 0:04:59.6]} 2. Nf3 {[%clk 0:04:56.3]}
2... g6 {[%clk 0:04:59.2]} 3. Nc3 {[%clk 0:04:55.4]} 3... Bg7 {[%clk 0:04:58.7]}
4. e4 {[%clk 0:04:54.5]} 4... d6 {[%clk 0:04:58.3]} 5. h3 {[%clk 0:04:53.7]}
5... O-O {[%clk 0:04:47.8]} 6. Bc4 {[%clk 0:04:52.5]} 6... a6 {[%clk 0:04:20.9]}
7. a4 {[%clk 0:04:50.2]} 7... b6 {[%clk 0:04:19.5]} 8. Qe2 {[%clk 0:04:49]} 8...
e6 {[%clk 0:04:09.7]} 9. Bg5 {[%clk 0:04:43.2]} 9... h6 {[%clk 0:04:03.1]} 10.
Bh4 {[%clk 0:04:41.1]} 10... g5 {[%clk 0:04:02.5]} 11. Bg3 {[%clk 0:04:39.7]}
11... Bb7 {[%clk 0:04:01.5]} 12. e5 {[%clk 0:04:34.8]} 12... dxe5 {[%clk
0:03:53.8]} 13. dxe5 {[%clk 0:04:30.4]} 13... Nd5 {[%clk 0:03:52.7]} 14. Rd1
{[%clk 0:04:24.8]} 14... Nxc3 {[%clk 0:03:47.8]} 15. bxc3 {[%clk 0:04:18.3]}
15... Qe7 {[%clk 0:03:46.1]} 16. h4 {[%clk 0:04:07.5]} 16... g4 {[%clk
0:03:40.1]} 17. Nd4 {[%clk 0:04:06.4]} 17... h5 {[%clk 0:03:37.4]} 18. f3 {[%clk
0:04:04.3]} 18... gxf3 {[%clk 0:02:45.2]} 19. Nxf3 {[%clk 0:03:55.9]} 19... Nc6
{[%clk 0:02:30.6]} 20. Qe4 {[%clk 0:03:51.9]} 20... Na5 {[%clk 0:02:17.3]} 21.
Qe2 {[%clk 0:03:48.2]} 21... Nxc4 {[%clk 0:02:15.9]} 22. Qxc4 {[%clk 0:03:47.2]}
22... Bxf3 {[%clk 0:02:05.2]} 23. gxf3 {[%clk 0:03:45.7]} 23... Rad8 {[%clk
0:02:03.3]} 24. O-O {[%clk 0:03:41.4]} 24... Rxd1 {[%clk 0:02:01]} 25. Rxd1
{[%clk 0:03:40]} 25... Rd8 {[%clk 0:02:00.9]} 26. Rd4 {[%clk 0:03:35.2]} 26...
Bh6 {[%clk 0:01:54.4]} 27. Kg2 {[%clk 0:03:25.9]} 27... Kh8 {[%clk 0:01:49.7]}
28. Qd3 {[%clk 0:03:24.3]} 28... Rg8 {[%clk 0:01:47.7]} 29. Kh3 {[%clk
0:03:13.5]} 29... Qf8 {[%clk 0:01:43.1]} 30. Qe4 {[%clk 0:03:05.5]} 30... Qg7
{[%clk 0:01:40.3]} 0-1

[Event "Live Chess"]
[Site "Chess.com"]
[Date "2024.06.02"]
[Round "-"]
[White "JanMur7"]
[Black "f4nomore"]
[Result "1-0"]
[WhiteElo "2259"]
[BlackElo "1259"]
[TimeControl "300"]
[EndTime "23:45:16 PDT"]
[Termination "JanMur7 won by resignation"]

1. e4 {[%clk 0:04:57.8]} 1... g6 {[%clk 0:04:57.1]} 2. d4 {[%clk 0:04:51.5]}
2... Bg7 {[%clk 0:04:55.9]} 3. Nc3 {[%clk 0:04:50.9]} 3... d6 {[%clk 0:04:54.7]}
4. f4 {[%clk 0:04:47.7]} 4... Nd7 {[%clk 0:04:51.8]} 5. Nf3 {[%clk 0:04:46.9]}
5... b6 {[%clk 0:04:48.9]} 6. Be2 {[%clk 0:04:43.7]} 6... Bb7 {[%clk 0:04:47.7]}
7. O-O {[%clk 0:04:42.4]} 7... c5 {[%clk 0:04:45]} 8. Be3 {[%clk 0:04:39.4]}
8... cxd4 {[%clk 0:04:41.1]} 9. Bxd4 {[%clk 0:04:38.3]} 9... Ngf6 {[%clk
0:04:23.6]} 10. e5 {[%clk 0:04:33.5]} 10... dxe5 {[%clk 0:04:12.3]} 11. fxe5
{[%clk 0:04:33.4]} 11... Ng4 {[%clk 0:04:01]} 12. e6 {[%clk 0:04:25.7]} 12...
fxe6 {[%clk 0:03:58.2]} 13. Bxg7 {[%clk 0:04:21.7]} 13... Rg8 {[%clk 0:03:49.8]}
14. Bd4 {[%clk 0:04:19.2]} 14... e5 {[%clk 0:03:44.9]} 15. Bf2 {[%clk
0:04:16.3]} 15... e6 {[%clk 0:03:30.9]} 16. Nb5 {[%clk 0:03:53]} 16... Bd5
{[%clk 0:03:17.5]} 17. c4 {[%clk 0:03:45.8]} 17... Bxf3 {[%clk 0:03:07.3]} 18.
Bxf3 {[%clk 0:03:43.1]} 18... Nxf2 {[%clk 0:03:02.3]} 19. Rxf2 {[%clk 0:03:43]}
19... Rc8 {[%clk 0:02:52.1]} 20. Nd6+ {[%clk 0:03:40.8]} 20... Ke7 {[%clk
0:02:50.7]} 21. Nxc8+ {[%clk 0:03:39.8]} 21... Qxc8 {[%clk 0:02:49.7]} 22. Qd2
{[%clk 0:03:36.2]} 22... Qxc4 {[%clk 0:02:44.9]} 23. Rd1 {[%clk 0:03:32.7]}
23... Qc7 {[%clk 0:02:34.5]} 24. Qb4+ {[%clk 0:03:24.3]} 24... Ke8 {[%clk
0:02:28.2]} 25. Qd6 {[%clk 0:03:22]} 25... Qxd6 {[%clk 0:02:26.7]} 26. Rxd6
{[%clk 0:03:21.5]} 26... Nc5 {[%clk 0:02:20.5]} 27. b4 {[%clk 0:03:18.4]} 27...
e4 {[%clk 0:02:15.9]} 28. bxc5 {[%clk 0:03:14.6]} 28... exf3 {[%clk 0:02:13.3]}
29. cxb6 {[%clk 0:03:14.1]} 29... axb6 {[%clk 0:02:10.8]} 30. Rxe6+ {[%clk
0:03:13.4]} 30... Kd7 {[%clk 0:02:08.8]} 31. Rxb6 {[%clk 0:03:13.3]} 31... Kc7
{[%clk 0:02:07.2]} 32. Rf6 {[%clk 0:03:10.7]} 32... Rd8 {[%clk 0:02:03.8]} 33.
R2xf3 {[%clk 0:03:08.6]} 33... Rd1+ {[%clk 0:02:02.2]} 34. Kf2 {[%clk 0:03:08]}
34... Rd2+ {[%clk 0:01:59.8]} 35. Kg3 {[%clk 0:03:07.9]} 1-0

[Event "Live Chess"]
[Site "Chess.com"]
[Date "2024.06.02"]
[Round "-"]
[White "Dhaydon19"]
[Black "vincents82"]
[Result "1-0"]
[WhiteElo "2680"]
[BlackElo "2019"]
[TimeControl "300"]
[EndTime "23:45:34 PDT"]
[Termination "Dhaydon19 won by resignation"]

1. d4 {[%clk 0:04:58.5]} 1... d5 {[%clk 0:04:53.7]} 2. Nf3 {[%clk 0:04:57.6]}
2... Nf6 {[%clk 0:04:50.5]} 3. c4 {[%clk 0:04:57.2]} 3... c6 {[%clk 0:04:48.7]}
4. cxd5 {[%clk 0:04:55.5]} 4... cxd5 {[%clk 0:04:47.2]} 5. Nc3 {[%clk
0:04:55.2]} 5... Nc6 {[%clk 0:04:45.8]} 6. Bf4 {[%clk 0:04:54]} 6... a6 {[%clk
0:04:45.3]} 7. e3 {[%clk 0:04:53.2]} 7... Bg4 {[%clk 0:04:44.1]} 8. Be2 {[%clk
0:04:50.5]} 8... e6 {[%clk 0:04:42.8]} 9. h3 {[%clk 0:04:48.6]} 9... Bh5 {[%clk
0:04:39.5]} 10. Rc1 {[%clk 0:04:46.1]} 10... Bd6 {[%clk 0:04:38.2]} 11. Bxd6
{[%clk 0:04:44.8]} 11... Qxd6 {[%clk 0:04:36.3]} 12. O-O {[%clk 0:04:44.5]}
12... O-O {[%clk 0:04:34.6]} 13. Na4 {[%clk 0:04:43]} 13... Nd7 {[%clk
0:04:29.2]} 14. a3 {[%clk 0:04:41.7]} 14... b5 {[%clk 0:04:23.9]} 15. Nc5 {[%clk
0:04:39.6]} 15... Nxc5 {[%clk 0:04:22.2]} 16. dxc5 {[%clk 0:04:39.1]} 16... Qc7
{[%clk 0:04:12.4]} 17. b4 {[%clk 0:04:34.5]} 17... Bxf3 {[%clk 0:04:07.8]} 18.
Bxf3 {[%clk 0:04:31.9]} 18... Ne5 {[%clk 0:04:07.1]} 19. Be2 {[%clk 0:04:27.6]}
19... Nc4 {[%clk 0:04:05.8]} 20. e4 {[%clk 0:04:23.9]} 20... Rfd8 {[%clk
0:03:55.7]} 21. exd5 {[%clk 0:04:22.7]} 21... Rxd5 {[%clk 0:03:41.8]} 22. Qc2
{[%clk 0:04:20.7]} 22... Rd2 {[%clk 0:03:27.3]} 23. Qe4 {[%clk 0:04:17.5]} 23...
Rad8 {[%clk 0:03:05.7]} 24. Bxc4 {[%clk 0:04:12.5]} 24... bxc4 {[%clk
0:03:04.3]} 25. Qxc4 {[%clk 0:04:11.1]} 25... Qc6 {[%clk 0:02:58.5]} 26. Qb3
{[%clk 0:04:06.8]} 26... Re2 {[%clk 0:02:50.7]} 27. Rce1 {[%clk 0:04:03.7]}
27... Red2 {[%clk 0:02:39.4]} 28. Re3 {[%clk 0:04:02.6]} 28... Qb5 {[%clk
0:02:31.9]} 29. a4 {[%clk 0:04:01.7]} 29... Qd7 {[%clk 0:02:17.8]} 30. b5 {[%clk
0:03:57.6]} 30... Qd4 {[%clk 0:02:15.1]} 31. Rc3 {[%clk 0:03:50]} 31... axb5
{[%clk 0:02:03.3]} 32. axb5 {[%clk 0:03:48.6]} 32... Ra8 {[%clk 0:02:01.3]} 33.
c6 {[%clk 0:03:43.8]} 33... g6 {[%clk 0:02:00.1]} 34. c7 {[%clk 0:03:41.4]}
34... Rxf2 {[%clk 0:01:54]} 35. c8=Q+ {[%clk 0:03:35.3]} 35... Rxc8 {[%clk
0:01:47.6]} 36. Rxc8+ {[%clk 0:03:34.1]} 36... Kg7 {[%clk 0:01:46.8]} 37. Rxf2
{[%clk 0:03:33.5]} 1-0

[Event "Live Chess"]
[Site "Chess.com"]
[Date "2024.06.02"]
[Round "-"]
[White "ProfPoisson"]
[Black "Hacker_2009"]
[Result "0-1"]
[WhiteElo "1286"]
[BlackElo "2229"]
[TimeControl "300"]
[EndTime "23:45:35 PDT"]
[Termination "Hacker_2009 won by resignation"]

1. e4 {[%clk 0:04:53]} 1... c5 {[%clk 0:04:59.3]} 2. Nc3 {[%clk 0:04:49.7]} 2...
e6 {[%clk 0:04:58]} 3. f4 {[%clk 0:04:47.2]} 3... Nc6 {[%clk 0:04:56.4]} 4. Nf3
{[%clk 0:04:43]} 4... Nge7 {[%clk 0:04:53.5]} 5. Bb5 {[%clk 0:04:35.9]} 5... g6
{[%clk 0:04:51.9]} 6. Bxc6 {[%clk 0:04:33]} 6... Nxc6 {[%clk 0:04:50.3]} 7. O-O
{[%clk 0:04:31.3]} 7... Bg7 {[%clk 0:04:48]} 8. d3 {[%clk 0:04:29.5]} 8... O-O
{[%clk 0:04:46.5]} 9. Qe1 {[%clk 0:04:27.2]} 9... Nd4 {[%clk 0:04:45]} 10. Nxd4
{[%clk 0:04:24.4]} 10... cxd4 {[%clk 0:04:42.2]} 11. Ne2 {[%clk 0:04:22.2]}
11... d5 {[%clk 0:04:41.7]} 12. e5 {[%clk 0:04:18.3]} 12... Qb6 {[%clk 0:04:33]}
13. Qf2 {[%clk 0:04:08.7]} 13... f6 {[%clk 0:04:30.2]} 14. Nxd4 {[%clk
0:03:30.2]} 14... fxe5 {[%clk 0:03:58.6]} 15. Nf3 {[%clk 0:03:28.5]} 15... Qxf2+
{[%clk 0:03:55.6]} 16. Rxf2 {[%clk 0:03:25.8]} 16... exf4 {[%clk 0:03:55.5]} 17.
c3 {[%clk 0:03:18.8]} 17... e5 {[%clk 0:03:22.8]} 18. Bd2 {[%clk 0:03:17]} 18...
e4 {[%clk 0:03:21.7]} 19. dxe4 {[%clk 0:03:13.7]} 19... dxe4 {[%clk 0:03:21.6]}
20. Nd4 {[%clk 0:03:11.9]} 20... e3 {[%clk 0:03:20.7]} 21. Bxe3 {[%clk
0:03:06.2]} 21... fxe3 {[%clk 0:03:19.2]} 22. Rxf8+ {[%clk 0:03:04.6]} 22...
Kxf8 {[%clk 0:03:18.7]} 23. Re1 {[%clk 0:03:03]} 23... Bxd4 {[%clk 0:03:16.4]}
24. cxd4 {[%clk 0:03:00.7]} 24... Bf5 {[%clk 0:03:16.3]} 25. Rxe3 {[%clk
0:02:50.1]} 25... Re8 {[%clk 0:03:15.8]} 26. Rxe8+ {[%clk 0:02:47.6]} 26... Kxe8
{[%clk 0:03:15.7]} 27. Kf2 {[%clk 0:02:42.7]} 27... Ke7 {[%clk 0:03:14.8]} 28.
Ke3 {[%clk 0:02:41.1]} 28... Kd6 {[%clk 0:03:13.9]} 29. h3 {[%clk 0:02:35.6]}
29... Kd5 {[%clk 0:03:12.8]} 30. g4 {[%clk 0:02:33.8]} 30... Be4 {[%clk
0:03:12.7]} 31. b4 {[%clk 0:02:20.6]} 31... Bg2 {[%clk 0:03:11.1]} 32. h4 {[%clk
0:02:17.6]} 32... b5 {[%clk 0:03:06.6]} 33. a3 {[%clk 0:02:13.8]} 33... Bh3
{[%clk 0:03:02.4]} 34. g5 {[%clk 0:02:02]} 34... Bf5 {[%clk 0:03:02.3]} 35. Kf4
{[%clk 0:01:57.1]} 35... Kxd4 {[%clk 0:02:59.2]} 36. h5 {[%clk 0:01:55.7]} 36...
Kc3 {[%clk 0:02:51.8]} 37. hxg6 {[%clk 0:01:48.5]} 37... hxg6 {[%clk 0:02:49.9]}
38. Ke3 {[%clk 0:01:44.3]} 38... Kb3 {[%clk 0:02:49.8]} 39. Kd4 {[%clk
0:01:43.6]} 39... Kxa3 {[%clk 0:02:49.7]} 40. Kc5 {[%clk 0:01:43.2]} 40... Ka4
{[%clk 0:02:47.1]} 41. Kc6 {[%clk 0:01:38]} 41... Kxb4 {[%clk 0:02:47]} 42. Kb7
{[%clk 0:01:36.2]} 42... a5 {[%clk 0:02:46.9]} 0-1

[Event "Live Chess"]
[Site "Chess.com"]
[Date "2024.06.02"]
[Round "-"]
[White "RichardABates"]
[Black "VIDYUTGANESH"]
[Result "1-0"]
[WhiteElo "2359"]
[BlackElo "1744"]
[TimeControl "300"]
[EndTime "23:46:05 PDT"]
[Termination "RichardABates won by resignation"]

1. d4 {[%clk 0:04:59.4]} 1... Nf6 {[%clk 0:04:58.7]} 2. Nf3 {[%clk 0:04:57.6]}
2... g6 {[%clk 0:04:56.4]} 3. g3 {[%clk 0:04:56.1]} 3... d5 {[%clk 0:04:55.8]}
4. Bg2 {[%clk 0:04:53.9]} 4... Bg7 {[%clk 0:04:55.4]} 5. c4 {[%clk 0:04:52.5]}
5... dxc4 {[%clk 0:04:54.1]} 6. O-O {[%clk 0:04:48.8]} 6... O-O {[%clk
0:04:52.2]} 7. Na3 {[%clk 0:04:47.3]} 7... c5 {[%clk 0:04:50.5]} 8. dxc5 {[%clk
0:04:41.1]} 8... Qxd1 {[%clk 0:04:46.2]} 9. Rxd1 {[%clk 0:04:39.7]} 9... Be6
{[%clk 0:04:45.7]} 10. Ng5 {[%clk 0:04:33.7]} 10... Nc6 {[%clk 0:04:42.2]} 11.
Nxe6 {[%clk 0:04:32.1]} 11... fxe6 {[%clk 0:04:40.6]} 12. Nxc4 {[%clk
0:04:30.5]} 12... Nd5 {[%clk 0:04:38.8]} 13. Bxd5 {[%clk 0:04:26.1]} 13... exd5
{[%clk 0:04:37.7]} 14. Rxd5 {[%clk 0:04:24.9]} 14... Rad8 {[%clk 0:04:33.7]} 15.
Rxd8 {[%clk 0:04:20.7]} 15... Rxd8 {[%clk 0:04:31.9]} 16. Be3 {[%clk 0:04:19.2]}
16... Nb4 {[%clk 0:04:25.8]} 17. Rc1 {[%clk 0:04:11]} 17... Nxa2 {[%clk
0:04:24]} 18. Ra1 {[%clk 0:04:09.7]} 18... Nb4 {[%clk 0:04:20.7]} 19. Rxa7
{[%clk 0:04:07.9]} 19... Bd4 {[%clk 0:04:12.2]} 20. Rxb7 {[%clk 0:04:00.9]}
20... Bxe3 {[%clk 0:04:10.7]} 21. Nxe3 {[%clk 0:03:54.7]} 21... Nc6 {[%clk
0:04:01.3]} 22. b4 {[%clk 0:03:53.2]} 22... Rd4 {[%clk 0:03:58.1]} 23. b5 {[%clk
0:03:50.3]} 1-0